bitfinex/quotes_ETHUSD_20240703
["timestamp","ask_amount","ask_price","bid_price","bid_amount"]
[1720034091071,0.0758003,3298.6,3298.0,3.03213]
[1720034093337,1.12638033,3298.6,3298.0,3.03213]
[1720034093706,0.0758003,3298.6,3298.0,3.03213]
[1720034095833,3.10674443,3299.3,3298.5,3.03167]
[1720034096030,0.07579296,3299.2,3298.5,3.03167]
[1720034096619,0.07579296,3299.2,3298.6,3.03153]
[1720034097596,0.07579019,3299.4,3298.6,3.03153]
[1720034097795,0.92343519,3299.4,3298.6,3.03153]
[1720034098151,3.92343519,3299.4,3298.6,3.03153]
[1720034098827,3.92343519,3299.4,3298.7,3.03142]
[1720034098828,3.07579019,3299.4,3298.7,3.03142]
[1720034099014,3.07578476,3299.3,3298.8,3.03132]
[1720034099218,0.07578475,3299.2,3298.7,3.03142]
[1720034099412,0.07578475,3299.2,3298.8,3.03138]
[1720034099617,0.07578475,3299.2,3298.5,3.03163]
[1720034101226,0.07576746,3300.2,3299.2,0.9468427]
[1720034101400,3.03041,3299.9,3299.2,0.9468427]
[1720034101639,0.07577796,3299.8,3299.2,0.9468427]
[1720034101943,0.07577799,3299.7,3299.2,3.03103]
[1720034102459,0.07577799,3299.7,3298.9,3.9781027]
[1720034102668,7.732935,3301.0,3300.3,3.02995]
[1720034102860,0.84904483,3300.9,3299.6,8.62826]
[1720034103063,0.07575133,3300.9,3300.6,3.02974]
[1720034103273,3.10479468,3301.4,3300.4,3.02985]
[1720034103576,3.10479468,3301.4,3300.2,3.03005]
[1720034103577,3.0292,3301.2,3300.2,3.03005]
[1720034103791,0.37866963,3301.1,3300.2,3.03005]
[1720034103938,0.37866963,3301.1,3300.3,3.03]
[1720034104135,3.02949,3300.9,3299.9,0.9468427]
[1720034104376,5.50571,3300.7,3299.7,3.9773327]
[1720034104581,0.07576083,3300.6,3299.8,3.03041]
[1720034104751,0.55814708,3300.5,3299.8,3.03041]
[1720034104956,0.07576084,3300.4,3299.8,3.03041]
[1720034105892,0.07576084,3300.4,3299.9,3.03031]
[1720034106221,0.07575596,3300.7,3300.2,3.03005]
[1720034106395,0.07575596,3300.8,3300.3,3.03]
[1720034107291,0.07574844,3301.0,3300.3,3.03]
[1720034107490,0.71653628,3301.0,3300.3,3.03]
[1720034111474,0.07574844,3301.0,3300.3,3.03002]
[1720034112056,0.07574844,3301.0,3300.4,3.02988]
[1720034112398,0.07574234,3301.5,3300.3,3.03002]
[1720034112600,3.10468234,3301.5,3300.6,3.02974]
[1720034113374,0.31046823,3301.4,3300.6,3.02974]
[1720034113598,0.07574006,3301.3,3300.6,3.02974]
[1720034113903,0.07574005,3301.2,3300.7,3.02959]
[1720034114266,0.07573798,3301.5,3300.7,3.02959]
[1720034115001,0.07573798,3301.5,3300.7,6.05918]
[1720034116477,0.07573798,3301.5,3300.7,3.02959]
[1720034117084,3.10470798,3301.5,3300.7,3.02959]
[1720034117311,3.0,3301.4,3300.7,3.02959]
[1720034117495,0.07573794,3301.3,3300.7,3.02959]
[1720034119270,3.0292,3301.2,3300.2,3.03006]
[1720034119467,0.07574434,3301.1,3300.3,3.02999]
[1720034119896,6.13440434,3301.1,3300.1,3.03013]
[1720034120130,3.02948,3300.9,3300.1,3.03013]
[1720034120269,0.07575053,3300.8,3299.6,9.692]
[1720034120476,0.07575053,3300.8,3300.1,3.03012]
[1720034126983,0.07574177,3301.2,3300.6,3.02969]
[1720034129652,0.07574177,3301.2,3300.4,3.0299]
[1720034129653,0.07574177,3301.2,3300.4,6.05975]
[1720034129811,0.07574177,3301.2,3300.5,3.02979]
[1720034130009,0.07574177,3301.2,3300.6,3.02975]
[1720034131055,0.07574177,3301.2,3300.6,6.05942]
[1720034131208,0.07574177,3301.2,3300.7,3.02958]
[1720034131408,3.0,3301.4,3300.6,3.635612]
[1720034131409,0.07573895,3301.4,3300.8,3.02955]
[1720034131642,0.07573895,3301.4,3301.0,3.02938]
[1720034132041,0.07573895,3301.4,3301.0,6.05869]
[1720034132258,2.39533412,3301.7,3301.0,0.605869]
[1720034132459,0.07573412,3301.7,3301.2,3.02912]
[1720034132628,0.07573412,3301.7,3301.2,6.05824]
[1720034132833,0.07573412,3301.7,3301.2,3.02912]
[1720034133238,3.07572702,3301.8,3301.3,3.0291]
[1720034133439,0.07572702,3301.7,3301.1,3.0292]
[1720034134751,1.42915572,3301.7,3300.9,3.02947]
[1720034135054,3.02883,3301.6,3300.8,3.02954]
[1720034135245,0.07573367,3301.5,3300.9,3.02946]
[1720034135578,0.07573367,3301.5,3300.9,3.02942]
[1720034137353,3.0,3301.8,3301.1,3.02928]
[1720034137354,0.07572905,3301.6,3301.1,3.02928]
[1720034138837,0.07572905,3301.6,3300.9,3.02942]
[1720034139066,0.07572905,3301.6,3300.9,6.05883]
[1720034139376,0.07572905,3301.6,3300.9,3.02941]
[1720034139572,0.07572905,3301.6,3300.8,0.94841739]
[1720034139573,3.02899,3301.5,3300.8,0.94841739]
[1720034139736,2.4669,3301.3,3300.7,0.94890853]
[1720034139941,2.4669,3301.3,3300.6,1.26521137]
[1720034139942,3.0297,3300.7,3300.2,0.94890853]
[1720034140159,3.02985,3300.5,3299.9,0.94890853]
[1720034140345,3.10570997,3300.4,3299.9,0.94890853]
[1720034140554,3.10570997,3300.4,3299.8,0.94890853]
[1720034141661,3.635676,3300.6,3299.8,0.94890853]
[1720034141662,2.3152,3300.2,3299.8,0.94890853]
[1720034141862,3.03048,3299.8,3299.7,0.94890853]
[1720034142063,3.03059,3299.7,3299.3,0.94890853]
[1720034142382,0.07577728,3299.6,3299.1,0.94890853]
[1720034142677,2.39097728,3299.5,3298.8,1.26812119]
[1720034142977,2.39097728,3299.5,3298.1,2.2192106]
[1720034142978,3.03164,3298.6,3298.3,1.26812119]
[1720034147760,0.07578205,3299.6,3298.8,3.334518]
[1720034149863,0.07578205,3299.6,3298.9,3.03131]
[1720034152387,3.03081,3299.5,3298.5,3.03165]
[1720034152683,0.07578187,3299.4,3298.5,3.03165]
[1720034152861,0.07578187,3299.4,3298.6,3.03158]
[1720034153791,0.38644106,3299.4,3298.6,3.03158]
[1720034154886,3.41731106,3299.4,3298.6,3.03158]
[1720034155090,3.03096,3299.3,3298.4,3.03176]
[1720034155289,2.39938882,3299.2,3298.1,3.03202]
[1720034155658,3.03131,3298.9,3298.1,3.03202]
[1720034155853,0.07579405,3298.8,3298.1,3.03202]
[1720034156788,0.07579405,3298.8,3298.2,3.03194]
[1720034157097,0.07579405,3299.0,3298.3,3.03185]
[1720034157256,0.07579405,3299.0,3298.5,3.03162]
[1720034157462,0.07578993,3299.2,3298.5,3.03162]
[1720034157785,0.07578646,3299.4,3298.6,3.03153]
[1720034158656,0.07578347,3299.5,3298.8,3.03134]
[1720034158856,0.07578347,3299.5,3298.9,3.637521]
[1720034159082,0.07578347,3299.5,3298.7,3.03147]
[1720034160979,2.3566,3299.7,3298.7,3.03147]
[1720034160980,0.07577681,3299.7,3298.7,3.03147]
[1720034162021,0.07577091,3299.9,3298.5,5.5615]
[1720034162214,0.07577091,3299.9,3298.6,0.55]
[1720034162400,0.07577091,3299.9,3298.7,0.61115]
[1720034162578,3.0305,3299.8,3298.7,0.61115]
[1720034162784,0.07577153,3299.7,3298.7,0.61115]
[1720034164015,3.10635153,3299.7,3298.7,0.61115]
[1720034164895,0.07577153,3299.7,3298.7,0.61115]
[1720034165091,0.07577155,3299.8,3298.7,0.61115]
[1720034171150,3.03223,3297.9,3297.8,0.0819]
[1720034171306,3.10804553,3297.9,3297.8,0.0819]
[1720034172007,6.14027553,3297.9,3297.8,0.0819]
[1720034172208,2.2645,3297.2,3296.0,0.94803002]
[1720034172519,3.0328,3297.3,3295.0,0.31130031]
[1720034172520,3.03413,3295.9,3295.0,0.31130031]
[1720034172718,3.1100413,3295.8,3294.6,3.19]
[1720034172916,3.07586196,3295.7,3294.6,3.19]
[1720034173133,3.07586196,3295.7,3294.7,0.319]
[1720034173531,3.07586196,3295.7,3294.1,0.94803002]
[1720034173711,3.07586196,3295.7,3294.3,3.19]
[1720034174027,6.11012196,3295.7,3294.3,3.19]
[1720034174379,3.03472,3295.2,3294.0,0.1180079]
[1720034174527,0.07587448,3295.1,3294.0,1.06603792]
[1720034174846,0.07587448,3295.1,3294.0,4.25603792]
[1720034175060,3.0,3295.7,3294.2,3.19]
[1720034175239,3.03461,3295.4,3294.2,3.19]
[1720034175404,0.07587036,3295.3,3294.2,3.19]
[1720034176466,3.03499,3294.9,3294.0,0.1180079]
[1720034177081,0.07588145,3294.8,3294.0,0.1180079]
[1720034177360,0.07588145,3294.8,3294.0,0.46097477]
[1720034178019,0.07588145,3294.8,3294.0,0.1180079]
[1720034178724,0.07588145,3294.8,3294.0,1.06176869]
[1720034178947,0.07588145,3294.8,3294.0,0.1180079]
[1720034179342,0.07588145,3294.8,3294.0,1.06176869]
[1720034179660,0.07588145,3294.8,3294.0,0.1180079]
[1720034180722,7.43,3295.5,3294.1,0.94376079]
[1720034180923,3.03471,3295.2,3294.3,0.94376079]
[1720034181362,0.07587418,3295.4,3294.3,0.94376079]
[1720034181363,3.11045418,3295.4,3294.3,0.94376079]
[1720034181568,3.11045418,3295.4,3294.4,0.94376079]
[1720034181753,3.11041418,3295.4,3294.4,0.94376079]
[1720034181950,3.11041418,3295.4,3294.5,0.94376079]
[1720034182169,3.03464,3295.3,3294.5,0.94376079]
[1720034182464,0.07587283,3295.2,3294.6,0.94376079]
[1720034182650,7.43,3295.5,3294.6,0.94376079]
[1720034182854,2.279,3295.7,3294.8,0.94376079]
[1720034183049,3.11012633,3295.7,3294.9,0.94376079]
[1720034183376,3.11012633,3295.7,3295.0,0.94376079]
[1720034184469,3.11012633,3295.7,3295.1,0.94376079]
[1720034184842,7.43,3296.1,3295.1,0.94376079]
[1720034184843,10.46392,3296.1,3295.1,0.94376079]
[1720034185040,3.07585835,3296.0,3295.1,0.22021085]
[1720034185257,3.07585835,3296.0,3295.4,0.94154064]
[1720034185567,3.07585835,3296.0,3295.5,0.94154064]
[1720034186063,3.07585835,3296.0,3295.4,0.94154064]
[1720034186468,3.07585835,3296.0,3295.5,0.94154064]
[1720034186852,2.3086,3296.2,3295.5,0.94154064]
[1720034186853,5.34239,3296.2,3295.6,0.94154064]
[1720034187063,3.03413,3295.9,3295.6,0.94154064]
[1720034187229,3.03413,3295.9,3295.4,0.94154064]
[1720034187230,0.07585838,3295.8,3295.4,0.94154064]
[1720034187924,3.03426,3295.7,3295.4,0.94154064]
[1720034188129,0.0758634,3295.6,3295.3,0.94154064]
[1720034188437,0.0758634,3295.6,3295.1,1.25538753]
[1720034188438,0.0758634,3295.6,3295.2,0.94154064]
[1720034189728,0.38687574,3295.6,3295.2,0.94154064]
[1720034189929,3.03469,3295.3,3295.0,0.94154064]
[1720034190273,3.03469,3295.3,3294.8,1.25538753]
[1720034190274,3.0348,3295.1,3294.8,0.94154064]
[1720034190460,0.07587499,3295.0,3294.8,0.94154064]
[1720034190625,0.07587499,3295.0,3294.2,0.42517687]
[1720034190626,0.07587499,3295.0,3294.7,0.94154064]
[1720034190824,0.07587499,3295.0,3294.5,1.25538753]
[1720034190825,3.035,3294.9,3294.6,0.94154064]
[1720034191029,2.3814,3294.7,3294.5,0.94154064]
[1720034191252,3.03619,3293.6,3293.2,0.94223364]
[1720034191534,3.07591306,3293.5,3292.7,1.57038941]
[1720034191759,3.07591306,3293.5,3292.4,1.88394983]
[1720034191760,0.0759126,3293.4,3292.6,1.57038941]
[1720034192098,3.1123126,3293.4,3292.4,3.19]
[1720034192281,3.07591331,3293.3,3292.4,3.66603894]
[1720034192886,3.07591331,3293.3,3292.1,1.57038941]
[1720034193213,3.03756,3292.2,3291.7,1.57038941]
[1720034193394,3.03741,3292.3,3291.7,1.57038941]
[1720034193563,3.11342173,3292.2,3291.2,0.35648304]
[1720034193896,6.03757,3292.1,3291.3,0.19268724]
[1720034194063,0.07594705,3292.0,3291.3,0.19268724]
[1720034194260,3.03786,3291.8,3291.2,0.35648304]
[1720034194481,0.0759496,3291.9,3291.2,0.35648304]
[1720034194676,3.0759496,3291.9,3291.2,0.35648304]
[1720034194884,6.1137496,3291.9,3291.2,0.35648304]
[1720034195099,3.03746,3292.3,3291.2,0.35648304]
[1720034195280,3.03758,3292.1,3291.2,0.35648304]
[1720034195595,3.03773,3292.0,3291.2,0.35648304]
[1720034196400,3.0,3292.2,3291.2,0.35648304]
[1720034196697,3.0,3292.2,3291.3,0.55]
[1720034197077,6.03748,3292.2,3291.3,0.55]
[1720034197286,3.03757,3292.1,3291.3,0.55]
[1720034197467,6.07521,3292.1,3291.3,0.55]
[1720034197761,6.07521,3292.1,3291.2,0.35648304]
[1720034197762,3.11361191,3292.0,3291.2,0.35648304]
[1720034197967,3.03688,3292.9,3291.2,0.35648304]
[1720034197968,3.0372,3292.6,3291.2,0.35648304]
[1720034198164,3.03739,3292.3,3291.3,3.74]
[1720034198766,3.03786,3291.8,3291.2,0.35648304]
[1720034199001,3.0,3292.6,3291.2,0.35648304]
[1720034199002,3.03816,3291.5,3291.2,0.35648304]
[1720034199520,3.03823,3291.4,3291.2,0.35648304]
[1720034199806,3.03757,3292.1,3291.2,0.35648304]
[1720034199807,8.45707811,3291.3,3291.2,0.35648304]
[1720034200225,6.03831,3291.3,3291.2,0.35648304]
[1720034200366,3.03814,3291.5,3291.2,0.35648304]
[1720034200572,6.07662,3291.3,3291.2,0.35648304]
[1720034200794,3.03831,3291.3,3291.2,0.35648304]
[1720034200994,3.0,3292.0,3291.2,0.35648304]
[1720034201214,3.03792,3291.8,3291.2,0.35648304]
[1720034201375,6.11361881,3292.0,3291.2,0.35648304]
[1720034201376,0.07595459,3291.7,3291.2,0.35648304]
[1720034201710,3.03786,3291.8,3291.2,0.35648304]
[1720034201924,3.03804,3291.6,3291.2,0.35648304]
[1720034202282,3.03786,3291.8,3291.2,0.35648304]
[1720034202632,2.48675453,3291.7,3291.2,0.35648304]
[1720034202828,6.07662,3291.3,3291.2,0.35648304]
[1720034203923,3.03831,3291.3,3291.2,0.35648304]
[1720034204332,3.0382,3291.5,3291.2,0.35648304]
[1720034204529,0.07596022,3291.4,3291.2,0.35648304]
[1720034204724,3.03824,3291.4,3291.2,0.35648304]
[1720034205033,3.03831,3291.3,3291.2,0.35648304]
[1720034205639,3.11427441,3291.3,3291.2,0.35648304]
[1720034207143,6.15258441,3291.3,3291.2,0.35648304]
[1720034207707,9.19089441,3291.3,3291.2,0.35648304]
[1720034207907,12.19089441,3291.3,3291.2,0.35648304]
[1720034208746,3.03889,3290.7,3288.9,1.217309]
[1720034209050,3.03971,3289.8,3289.0,0.02735763]
[1720034209211,3.03954,3290.0,3289.0,0.02735763]
[1720034209412,3.04016,3289.3,3288.4,2.2894]
[1720034209737,3.07599777,3289.9,3288.4,2.2894]
[1720034209738,0.07600837,3289.8,3288.4,5.4794]
[1720034210059,3.0399,3289.6,3288.5,0.54794]
[1720034210206,3.0,3290.1,3287.8,0.93648593]
[1720034210207,2.53520288,3289.5,3287.8,0.93648593]
[1720034210411,3.03975,3289.8,3288.2,2.722]
[1720034210612,0.07599958,3289.7,3288.3,2.2771]
[1720034210855,0.07599958,3289.7,3288.4,3.19]
[1720034210856,3.11579958,3289.7,3288.4,3.19]
[1720034211555,0.07599958,3289.7,3288.3,2.2771]
[1720034211877,0.07599958,3289.7,3288.5,3.19]
[1720034212147,3.03942,3290.1,3288.7,5.912]
[1720034212361,3.03942,3290.1,3288.9,3.19]
[1720034212851,3.03942,3290.1,3289.0,0.55]
[1720034213047,3.03942,3290.1,3289.1,0.374]
[1720034213250,3.03942,3290.1,3289.2,0.55]
[1720034213947,3.03942,3290.1,3289.0,3.19]
[1720034214269,3.03942,3290.1,3289.1,0.55]
[1720034214916,3.03892,3290.7,3289.2,3.19]
[1720034215112,3.03907,3290.5,3289.4,3.19]
[1720034215344,0.07598178,3290.4,3289.4,3.19]
[1720034215513,0.07598178,3290.4,3289.5,0.55]
[1720034215944,3.03907,3290.5,3289.5,0.55]
[1720034215945,3.11505179,3290.5,3289.5,0.55]
[1720034216462,0.07598179,3290.5,3289.3,0.55339]
[1720034216753,0.07598179,3290.5,3288.7,4.28440783]
[1720034216754,3.03988,3289.6,3288.5,3.42385786]
[1720034216926,3.03929,3290.3,3288.5,3.42385786]
[1720034216927,3.04018,3289.3,3288.5,2.4864]
[1720034217142,3.04041,3289.1,3288.1,0.93745786]
[1720034217425,3.04041,3289.1,3288.0,3.73634382]
[1720034217426,3.04055,3288.9,3288.2,0.46738017]
[1720034218251,1.819,3288.7,3287.6,1.56220739]
[1720034218580,2.36171594,3288.8,3285.7,1.25290669]
[1720034218581,1.0,3287.3,3285.7,1.25290669]
[1720034218727,1.0,3287.3,3285.2,1.25290669]
[1720034218728,3.53258686,3287.2,3285.2,1.25290669]
[1720034219071,1.44206689,3286.4,3285.3,0.02683946]
[1720034219382,0.52673282,3287.1,3285.3,0.02683946]
[1720034219383,1.44206689,3286.5,3285.3,0.02683946]
[1720034219582,1.44206689,3286.5,3284.4,3.3047]
[1720034219583,1.44206689,3286.7,3284.7,3.19]
[1720034219725,1.44206689,3286.7,3285.4,3.19]
[1720034219726,1.4420252,3286.7,3285.4,3.19]
[1720034219933,1.44220106,3286.9,3286.4,1.0]
[1720034220246,1.44220106,3286.9,3286.1,2.3047]
[1720034220247,2.3737,3288.5,3286.1,2.3047]
[1720034220429,3.0412,3288.2,3286.5,0.02764487]
[1720034220628,3.04158,3287.8,3286.7,2.722]
[1720034220827,3.04183,3287.5,3286.7,2.722]
[1720034221177,3.04183,3287.5,3286.1,2.3047]
[1720034221178,3.04238,3286.9,3286.8,0.0266982]
[1720034221329,3.04211,3287.2,3286.1,2.3047]
[1720034221529,0.076064,3287.1,3286.1,2.53517]
[1720034221751,0.541451,3288.4,3286.4,3.19]
[1720034221970,3.04164,3287.7,3286.4,3.19]
[1720034222289,3.04089,3288.6,3287.2,6.23209]
[1720034222566,3.04041,3289.1,3286.8,5.912]
[1720034222567,0.07603986,3288.5,3286.8,5.912]
[1720034222730,3.04139,3288.0,3286.8,8.95445]
[1720034223042,3.04092,3288.5,3287.3,3.19]
[1720034223253,0.07602853,3288.4,3287.4,0.55]
[1720034223471,3.04092,3288.5,3287.4,3.5919]
[1720034223691,0.07602688,3288.6,3287.5,3.0684482]
[1720034223846,3.04044,3289.0,3287.6,6.82401482]
[1720034224046,3.04044,3289.0,3287.8,3.19]
[1720034224286,3.1159979,3289.5,3288.1,3.19]
[1720034224493,3.04046,3289.0,3287.9,3.0680782]
[1720034224659,3.04046,3289.0,3286.9,0.895445]
[1720034224660,3.04122,3288.2,3286.9,0.895445]
[1720034224983,3.04095,3288.5,3286.6,2.3047]
[1720034225185,1.44199089,3288.4,3287.4,3.04184]
[1720034225409,1.44199089,3288.5,3287.4,3.19]
[1720034225685,1.51821364,3288.9,3287.9,3.04138]
[1720034225850,1.4421939,3288.9,3287.9,3.04138]
[1720034226051,4.4826239,3289.0,3288.0,0.895338]
[1720034226278,1.4421939,3289.0,3288.1,3.74]
[1720034226479,1.4421939,3289.2,3288.3,5.912]
[1720034226647,4.5583047,3289.4,3288.4,0.55]
[1720034226849,4.5581596,3289.6,3288.5,3.04082]
[1720034227078,0.0760057,3289.6,3288.5,3.04082]
[1720034227260,3.1159057,3289.6,3288.4,4.690317]
[1720034227479,3.04046,3289.0,3287.5,3.19]
[1720034227662,1.4421939,3289.1,3286.8,2.2875]
[1720034227663,1.4421939,3288.3,3287.1,3.0421]
[1720034227866,1.4421939,3288.3,3286.9,5.76436]
[1720034227867,3.04135,3288.1,3286.9,2.722]
[1720034228065,1.44191334,3288.1,3287.1,3.04218]
[1720034228257,4.48318334,3288.1,3286.9,2.722]
[1720034228474,1.51794959,3288.2,3287.1,3.04217]
[1720034228678,1.51794959,3288.2,3287.0,3.69095]
[1720034228679,1.44191334,3288.0,3287.0,3.69095]
[1720034228876,1.51795122,3288.0,3287.0,3.69095]
[1720034229463,1.44191334,3287.9,3286.9,2.722]
[1720034229680,1.44191334,3287.7,3286.5,3.04274]
[1720034229974,0.52676004,3287.6,3287.0,3.04228]
[1720034230150,1.96867338,3287.6,3286.8,2.722]
[1720034230353,1.44191334,3287.6,3286.8,2.722]
[1720034230554,1.44191334,3287.7,3286.9,0.2722]
[1720034230847,1.44191334,3288.1,3287.4,2.722]
[1720034231051,3.04082,3288.6,3287.5,2.2902]
[1720034231291,1.96879288,3288.5,3287.5,2.2902]
[1720034231493,1.96879288,3288.5,3287.5,5.332]
[1720034231666,1.96879288,3288.4,3287.5,6.1374]
[1720034231852,1.44211588,3288.4,3287.5,6.2856]
[1720034232174,1.44211588,3288.4,3285.8,1.24943097]
[1720034232175,3.04229,3287.0,3286.1,1.24943097]
[1720034232378,1.44156897,3287.1,3286.2,3.04302]
[1720034232688,1.44156897,3287.4,3286.6,3.04264]
[1720034232848,3.04171,3287.7,3286.6,3.346904]
[1720034232849,1.44156897,3287.6,3286.6,3.346904]
[1720034233057,1.44156897,3287.6,3286.7,3.04255]
[1720034233251,1.96836291,3287.6,3286.7,3.04255]
[1720034233689,1.44156897,3287.5,3286.7,3.04255]
[1720034233863,1.96836291,3287.6,3286.9,3.04237]
[1720034234063,0.07604252,3288.0,3286.9,3.04237]
[1720034234264,1.44188711,3287.8,3286.9,3.04237]
[1720034234477,1.44188711,3287.8,3287.2,3.04209]
[1720034234881,1.44188711,3288.0,3287.2,3.04209]
[1720034235077,1.44188711,3288.2,3287.6,3.04172]
[1720034235279,1.44188711,3288.3,3287.6,3.19]
[1720034235596,1.44188711,3288.3,3287.9,3.04145]
[1720034236093,1.44188711,3288.4,3287.9,3.04145]
[1720034236587,1.96854027,3288.3,3287.9,3.04145]
[1720034236766,1.44188711,3288.3,3287.9,3.04145]
[1720034236966,1.44188711,3288.3,3288.0,3.04136]
[1720034237166,1.44188711,3288.4,3288.1,6.23126]
[1720034237503,3.03886,3290.7,3288.2,3.04115]
[1720034237504,1.44234581,3288.5,3288.2,3.04115]
[1720034237713,3.03957,3290.0,3288.2,3.04115]
[1720034237714,3.04008,3289.4,3288.3,3.04105]
[1720034237856,0.526598,3288.4,3288.3,0.55]
[1720034238054,3.04053,3288.9,3287.5,5.76382]
[1720034238316,0.24011,3289.6,3286.6,1.25964645]
[1720034238317,1.44229109,3287.9,3286.6,1.25964645]
[1720034238455,3.04219,3287.1,3286.1,1.25964645]
[1720034238775,1.44178667,3286.9,3286.1,0.28342045]
[1720034238957,1.96838467,3286.8,3285.8,2.722]
[1720034239153,1.96838467,3286.8,3285.4,1.25964645]
[1720034239154,1.44178667,3286.4,3285.4,1.25964645]
[1720034239381,1.44178667,3286.4,3285.6,2.722]
[1720034239656,1.44178667,3286.4,3285.3,1.25964645]
[1720034239657,1.44178667,3286.5,3286.1,5.76504]
[1720034239971,3.07606928,3287.5,3286.4,3.04282]
[1720034239972,1.44178667,3286.6,3286.4,3.04282]
[1720034240166,1.44178667,3286.6,3286.3,3.04285]
[1720034240167,1.44161272,3286.7,3286.5,3.04272]
[1720034240373,1.44161272,3286.9,3286.6,3.04265]
[1720034240700,1.44184353,3287.2,3286.6,6.23265]
[1720034240873,0.52682939,3287.1,3286.6,6.23265]
[1720034241072,1.44184353,3287.2,3286.7,0.55]
[1720034241256,3.04153,3287.9,3286.7,0.55]
[1720034241257,1.44184353,3287.0,3286.7,0.55]
[1720034241458,0.52682094,3287.1,3286.7,0.55]
[1720034241459,1.44184353,3287.1,3286.9,3.19]
[1720034241670,3.0409,3288.5,3287.1,3.19]
[1720034241671,1.44184353,3287.3,3287.1,3.19]
[1720034241928,1.44184353,3287.3,3287.2,0.55]
[1720034242090,1.44184353,3287.3,3287.2,3.59203]
[1720034242091,0.52675894,3287.3,3287.2,3.59203]
[1720034242291,1.44184353,3287.4,3287.2,3.59203]
[1720034242495,1.44184353,3287.6,3287.2,3.59203]
[1720034242696,1.44184353,3287.7,3287.2,4.574461]
[1720034243059,1.96857096,3287.6,3287.2,4.574461]
[1720034243411,1.44206755,3287.6,3287.2,4.574461]
[1720034243592,1.44206755,3287.4,3286.6,1.25964645]
[1720034243762,1.44182839,3287.2,3286.5,3.04272]
[1720034243967,1.44182839,3287.2,3286.8,3.04242]
[1720034244411,1.44182839,3287.0,3286.8,3.04242]
[1720034244561,1.44182839,3287.1,3286.8,3.04242]
[1720034244911,1.44182839,3287.0,3286.8,3.04242]
[1720034245406,0.07605098,3287.9,3286.8,3.04242]
[1720034245560,0.3117411,3287.8,3286.9,3.04237]
[1720034245763,0.07603448,3288.6,3287.2,6.23207]
[1720034245982,3.041,3288.4,3287.3,0.55]
[1720034246260,0.07603113,3288.3,3287.3,0.55]
[1720034246462,3.04119,3288.2,3287.2,6.25002]
[1720034246661,3.04119,3288.2,3287.3,3.042]
[1720034246915,0.61582211,3288.2,3287.3,3.042]
[1720034247105,5.2893,3289.0,3287.4,3.59191]
[1720034247106,3.04082,3288.6,3287.4,3.59191]
[1720034247401,3.04099,3288.4,3287.4,3.59191]
[1720034248243,0.07603095,3288.3,3287.4,3.04191]
[1720034248536,0.07603095,3288.3,3287.2,6.25008]
[1720034248537,6.11717095,3288.3,3286.5,3.04273]
[1720034248695,2.2893,3289.0,3286.6,0.67945765]
[1720034248696,0.6117171,3288.2,3286.6,0.67945765]
[1720034248896,3.04109,3288.3,3287.2,3.04204]
[1720034249402,3.11721347,3288.2,3287.2,3.04204]
[1720034249607,3.0,3288.4,3287.3,3.04199]
[1720034249813,3.07603348,3288.5,3287.4,3.0419]
[1720034250023,0.61168435,3288.4,3287.2,3.04203]
[1720034250225,3.04154,3287.8,3286.8,3.04241]
[1720034250630,3.04154,3287.8,3286.6,3.72210765]
[1720034250844,3.04194,3287.4,3286.4,4.30239645]
[1720034251144,3.04216,3287.2,3286.4,1.25964645]
[1720034251337,0.3802532,3287.3,3286.4,1.25964645]
[1720034251508,8.40211,3287.9,3286.6,3.04265]
[1720034251509,3.04173,3287.6,3286.6,3.04265]
[1720034252300,3.04173,3287.6,3286.7,0.55]
[1720034252713,3.04173,3287.6,3286.7,3.59256]
[1720034252916,0.304173,3287.5,3286.7,3.59256]
[1720034253136,3.04164,3287.7,3286.7,3.59256]
[1720034253311,3.0,3287.6,3286.7,3.59256]
[1720034253518,3.04116,3288.3,3286.7,3.59256]
[1720034253714,3.04139,3288.0,3286.9,3.04237]
[1720034253927,0.07604461,3288.1,3287.1,3.04218]
[1720034254130,3.04071,3288.7,3287.3,3.04193]
[1720034254301,0.07603095,3288.6,3287.5,3.04176]
[1720034254511,3.11689095,3288.6,3287.5,3.04176]
[1720034255142,0.07603095,3288.7,3287.7,3.04162]
[1720034255446,0.38770004,3288.7,3287.7,3.04162]
[1720034255621,0.31166909,3288.7,3287.8,3.04149]
[1720034255799,0.07602688,3288.8,3287.8,3.59149]
[1720034256638,3.07602688,3288.8,3287.8,0.55]
[1720034256808,3.11680419,3288.7,3287.8,0.55]
[1720034257004,3.04092,3288.5,3287.3,3.04194]
[1720034257210,3.04161,3287.8,3286.9,3.04236]
[1720034257409,3.61168042,3288.6,3286.4,1.25964645]
[1720034257702,3.04128,3288.1,3287.2,3.04207]
[1720034257945,0.07603812,3288.0,3287.2,3.04207]
[1720034258245,0.07603806,3288.1,3287.2,3.04207]
[1720034258721,3.04056,3288.9,3287.0,3.04219]
[1720034258722,3.0,3288.3,3287.7,3.04163]
[1720034261349,3.04081,3288.6,3287.5,3.0418]
[1720034261562,0.07603246,3288.5,3287.5,3.0418]
[1720034262229,3.11693246,3288.5,3287.5,3.0418]
[1720034262614,3.58037,3289.2,3287.8,3.04148]
[1720034262845,3.04052,3289.0,3288.0,3.04135]
[1720034263156,3.04052,3289.0,3287.5,2.734]
[1720034263157,3.0411,3288.3,3287.3,3.04198]
[1720034263358,3.0411,3288.3,3287.4,0.55]
[1720034263562,3.0411,3288.3,3287.1,3.04214]
[1720034263563,1.44287389,3287.9,3287.1,3.04214]
[1720034263773,1.44287389,3287.6,3287.1,3.04214]
[1720034264061,1.44287389,3287.4,3286.8,5.2262]
[1720034264215,1.44287389,3287.3,3286.9,3.04231]
[1720034264636,1.44287389,3287.3,3285.9,4.9377175]
[1720034264637,3.04221,3287.1,3286.0,1.272614]
[1720034264837,3.04248,3286.8,3286.0,1.272614]
[1720034265154,3.04248,3286.8,3285.4,3.04376]
[1720034265155,1.4421917,3286.2,3285.4,3.04376]
[1720034265319,1.4421917,3286.2,3285.6,3.04357]
[1720034265514,3.11864971,3286.7,3285.6,3.04357]
[1720034265515,1.4421917,3286.3,3285.6,3.04357]